[Event "45th FIDE Womens Olympiad 2024"]
[Site "Budapest"]
[Date "2024.09.14"]
[Round "4.1"]
[White "Dronavalli, Harika"]
[Black "Daulyte-Cornette, Deimante"]
[Result "1-0"]
[ECO "C54"]
[WhiteElo "2502"]
[BlackElo "2369"]
[Annotator "ChessBase"]
[PlyCount "103"]
[EventDate "2024.09.05"]
[EventType "team-tourn"]
[EventCountry "HUN"]
[SourceTitle "playchess.com"]
[Source "ChessBase"]
[SourceQuality "1"]
[WhiteTeam "India"]
[BlackTeam "France"]
[WhiteTeamCountry "IND"]
[BlackTeamCountry "FRA"]
[TimeControl "40/5400+30:1800+30"]

1. e4 {[%emt 0:00:04]} e5 {[%emt 0:00:12]} 2. Nf3 {[%emt 0:00:06]} Nc6 {[%emt 0:00:08]} 3. Bc4 {[%emt 0:00:09]} Nf6 {[%emt 0:00:34]} 4. d3 {[%emt 0:00:24]} Bc5 {[%emt 0:00:39]} 5. O-O {[%emt 0:00:45]} d6 {[%emt 0:00:51]} 6. c3 {[%emt 0:00:38]} a5 {[%emt 0:00:36]} 7. Re1 {[%emt 0:02:56]} O-O {[%emt 0:01:10]} 8. h3 {[%emt 0:01:05]} Be6 {[%emt 0:02:38]} 9. Bb5 {[%emt 0:01:32]} Ba7 {[%emt 0:01:16]} 10. Nbd2 {[%emt 0:02:40]} Ne7 {[%emt 0:03:58]} 11. d4 {[%emt 0:00:48]} Ng6 {[%emt 0:08:58]} 12. Bd3 {[%emt 0:07:31]} c6 {[%emt 0:09:40]} 13. Nf1 {[%emt 0:02:26]} Nh5 {[%emt 0:09:25]} 14. g3 {[%emt 0:20:46]} Qd7 {[%emt 0:13:19]} 15. h4 {[%emt 0:03:44]} Bg4 {[%emt 0:14:32]} 16. Ne3 {[%emt 0:08:07]} Rae8 {[%emt 0:07:03]} 17. Be2 {[%emt 0:10:13]} Nf6 {[%emt 0:09:43]} 18. Nxg4 {[%emt 0:02:48]} Nxg4 {[%emt 0:00:15]} 19. h5 {[%emt 0:02:35]} Ne7 {[%emt 0:01:36]} 20. Nh4 {[%emt 0:09:26]} f5 {[%emt 0:02:07]} 21. Bxg4 {[%emt 0:01:12]} fxg4 {[%emt 0:00:10]} 22. Be3 {[%emt 0:00:16]} exd4 {[%emt 0:03:01]} 23. Bxd4 {[%emt 0:00:48]} Bxd4 {[%emt 0:00:54]} 24. Qxd4 {[%emt 0:00:06]} Qe6 {[%emt 0:00:53]} 25. Rad1 {[%emt 0:03:38]} Rd8 {[%emt 0:03:05]} 26. c4 {[%emt 0:02:00]} Qe5 {[%emt 0:00:56]} 27. Qxe5 {[%emt 0:07:49]} dxe5 {[%emt 0:00:05]} 28. Ng2 {[%emt 0:00:12]} Rd4 {[%emt 0:01:32]} 29. Rxd4 {[%emt 0:00:25]} exd4 {[%emt 0:00:04]} 30. c5 {[%emt 0:00:09]} b6 {[%emt 0:01:57]} 31. Rc1 {[%emt 0:03:40]} Rb8 {[%emt 0:00:38]} 32. Nf4 {[%emt 0:00:13]} bxc5 {[%emt 0:00:57]} 33. Nd3 {[%emt 0:00:49]} Rb5 {[%emt 0:02:36]} 34. Rxc5 {[%emt 0:00:44]} Rxc5 {[%emt 0:01:12]} 35. Nxc5 {[%emt 0:00:04]} Kf7 {[%emt 0:00:29]} 36. Kf1 {[%emt 0:01:54]} Kf6 {[%emt 0:00:38]} 37. Ke2 {[%emt 0:00:29]} Ke5 {[%emt 0:00:23]} 38. Kd3 {[%emt 0:00:17]} Ng8 {[%emt 0:00:31]} 39. Nb3 {[%emt 0:01:15]} c5 {[%emt 0:00:29]} 40. Nxa5 {[%emt 0:02:38]} Nf6 {[%emt 0:00:17]} 41. Nc4+ {[%emt 0:30:47]} Ke6 {[%emt 0:02:17]} 42. a4 {[%emt 0:00:00]} Nd7 {[%emt 0:02:24]} 43. a5 {[%emt 0:00:00]} Nb8 {[%emt 0:00:05]} 44. b4 {[%emt 0:00:00]} cxb4 {[%emt 0:00:22]} 45. Kxd4 {[%emt 0:00:00]} Na6 {[%emt 0:01:11]} 46. Nd2 {[%emt 0:00:00]} Kd6 {[%emt 0:00:26]} 47. Nb3 {[%emt 0:00:00]} Nb8 {[%emt 0:03:21]} 48. e5+ {[%emt 0:00:00]} Ke6 {[%emt 0:00:32]} 49. Nc5+ {[%emt 0:00:00]} Kf5 {[%emt 0:00:14]} 50. e6 {[%emt 0:00:00]} b3 {[%emt 0:01:52]} 51. Kc3 {[%emt 0:00:00]} Nc6 {[%emt 0:00:57]} 52. a6 {[%emt 0:00:00]} 1-0

[Event "45th FIDE Womens Olympiad 2024"]
[Site "Budapest"]
[Date "2024.09.14"]
[Round "4.1"]
[White "Miladi, Amen"]
[Black "Sosna Mehari Abraham"]
[Result "1-0"]
[ECO "B35"]
[WhiteElo "1851"]
[BlackElo "1541"]
[PlyCount "73"]
[EventDate "2024.09.05"]
[EventType "team-tourn"]
[EventCountry "HUN"]
[WhiteTeam "Tunisia"]
[BlackTeam "Eritrea"]
[WhiteTeamCountry "TUN"]
[BlackTeamCountry "ERI"]
[TimeControl "40/5400+30:1800+30"]

1. e4 c5 2. Nf3 Nc6 3. d4 cxd4 4. Nxd4 g6 5. Nc3 Bg7 6. Be3 Nf6 7. Bc4 O-O 8. Bb3 e6 9. Qd2 d5 10. O-O-O Nxe4 11. Nxe4 dxe4 12. Nxc6 Qxd2+ 13. Bxd2 bxc6 14. Bb4 Re8 15. Rhe1 a5 16. Ba3 f5 17. Rd6 Ra6 18. Red1 Kf7 19. Ba4 Bf8 20. Rxc6 Rxc6 21. Bxc6 Bxa3 22. Bxe8+ Kxe8 23. bxa3 Ke7 24. Rd4 Bd7 25. Kb2 e5 26. Rd5 a4 27. Rxe5+ Kd6 28. Ra5 h5 29. Kc3 g5 30. Kd4 Ke7 31. Ke5 g4 32. g3 Be6 33. Rxa4 Bxa2 34. Ra7+ Kd8 35. Kxf5 Bd5 36. Ke5 Bc6 37. Kd6 1-0

[Event "45th FIDE Womens Olympiad 2024"]
[Site "Budapest"]
[Date "2024.09.14"]
[Round "4.2"]
[White "Milliet, Sophie"]
[Black "Vaishali, Rameshbabu"]
[Result "1/2-1/2"]
[ECO "D02"]
[WhiteElo "2348"]
[BlackElo "2498"]
[Annotator "ChessBase"]
[PlyCount "51"]
[EventDate "2024.09.05"]
[EventType "team-tourn"]
[EventCountry "HUN"]
[SourceTitle "playchess.com"]
[Source "ChessBase"]
[SourceQuality "1"]
[WhiteTeam "France"]
[BlackTeam "India"]
[WhiteTeamCountry "FRA"]
[BlackTeamCountry "IND"]
[TimeControl "40/5400+30:1800+30"]

1. Nf3 {[%emt 0:00:04]} d5 {[%emt 0:00:27]} 2. g3 {[%emt 0:00:11]} Nc6 {[%emt 0:00:12]} 3. d4 {[%emt 0:00:06]} Bf5 {[%emt 0:00:06]} 4. Bg2 {[%emt 0:00:21]} e6 {[%emt 0:00:17]} 5. O-O {[%emt 0:00:27]} Nb4 {[%emt 0:00:37]} 6. Na3 {[%emt 0:00:44]} Be7 {[%emt 0:00:31]} 7. Ne5 {[%emt 0:02:03]} Nf6 {[%emt 0:07:44]} 8. c3 {[%emt 0:11:28]} Nc6 {[%emt 0:00:09]} 9. Qa4 {[%emt 0:01:58]} O-O {[%emt 0:03:47]} 10. Nxc6 {[%emt 0:02:27]} bxc6 {[%emt 0:00:03]} 11. Qxc6 {[%emt 0:00:35]} Rb8 {[%emt 0:01:23]} 12. c4 {[%emt 0:15:34]} Qc8 {[%emt 0:43:21]} 13. Qa4 {[%emt 0:27:52]} c5 {[%emt 0:06:33]} 14. Nb5 {[%emt 0:06:35]} Qc6 {[%emt 0:12:20]} 15. dxc5 {[%emt 0:03:25]} Bxc5 {[%emt 0:07:56]} 16. Nc3 {[%emt 0:00:32]} Qxa4 {[%emt 0:04:48]} 17. Nxa4 {[%emt 0:00:03]} Bd4 {[%emt 0:00:03]} 18. e3 {[%emt 0:02:48]} Be5 {[%emt 0:00:28]} 19. f4 {[%emt 0:04:08]} Bc7 {[%emt 0:00:49]} 20. cxd5 {[%emt 0:02:43]} exd5 {[%emt 0:01:01]} 21. Nc3 {[%emt 0:00:13]} Rfd8 {[%emt 0:00:46]} 22. Rd1 {[%emt 0:07:57]} Bg4 {[%emt 0:01:14]} 23. Rd3 {[%emt 0:01:20]} Bf5 {[%emt 0:00:12]} 24. Rd1 {[%emt 0:00:08]} Bg4 {[%emt 0:00:29]} 25. Rd3 {[%emt 0:00:58]} Bf5 {[%emt 0:00:26]} 26. Rd1 {[%emt 0:01:44]} 1/2-1/2

[Event "45th FIDE Womens Olympiad 2024"]
[Site "Budapest"]
[Date "2024.09.14"]
[Round "4.2"]
[White "Besrat Mesgena Yoseph"]
[Black "Mefteh, Meyssem"]
[Result "0-1"]
[ECO "B29"]
[WhiteElo "1557"]
[BlackElo "1834"]
[PlyCount "104"]
[EventDate "2024.09.05"]
[EventType "team-tourn"]
[EventCountry "HUN"]
[WhiteTeam "Eritrea"]
[BlackTeam "Tunisia"]
[WhiteTeamCountry "ERI"]
[BlackTeamCountry "TUN"]
[TimeControl "40/5400+30:1800+30"]

1. e4 c5 2. Nc3 Nc6 3. Nf3 Nf6 4. Be2 d5 5. exd5 Nxd5 6. Nxd5 Qxd5 7. O-O e6 8. d3 Be7 9. b3 Bf6 10. Rb1 O-O 11. c4 Qf5 12. Bb2 Rd8 13. Qd2 b6 14. h3 h6 15. Bxf6 Qxf6 16. Rfe1 e5 17. Qe3 Qd6 18. Nh4 Re8 19. Bf3 Bd7 20. Bd5 Rac8 21. Qf3 Nd8 22. Re4 Bc6 23. Bxc6 Nxc6 24. Rg4 Nd4 25. Qe4 Qe6 26. Re1 f5 27. Nxf5 Qxf5 28. Qd5+ Qe6 29. Rxe5 Qxd5 30. Rxd5 Rcd8 31. Re4 Rxd5 32. Rxe8+ Kf7 33. Re4 Rd7 34. g4 Nc6 35. h4 Rxd3 36. h5 Rd4 37. Re3 Rxg4+ 38. Kf1 Rh4 39. Rf3+ Ke6 40. Rg3 Kf7 41. Rf3+ Kg8 42. Rf5 Nd4 43. Re5 Kf7 44. Kg2 Rf4 45. Kg3 Rf5 46. f4 Rxe5 47. fxe5 Ke6 48. Kf4 Nc6 49. Ke4 Nxe5 50. a4 Nc6 51. Kf4 Na5 52. Ke4 Nxb3 {0-} 0-1

[Event "45th FIDE Womens Olympiad 2024"]
[Site "Budapest"]
[Date "2024.09.14"]
[Round "4.3"]
[White "Divya Deshmukh"]
[Black "Hejazipour, Mitra"]
[Result "1-0"]
[ECO "B92"]
[WhiteElo "2483"]
[BlackElo "2327"]
[Annotator "ChessBase"]
[PlyCount "111"]
[EventDate "2024.09.05"]
[EventType "team-tourn"]
[EventCountry "HUN"]
[SourceTitle "playchess.com"]
[Source "ChessBase"]
[SourceQuality "1"]
[WhiteTeam "India"]
[BlackTeam "France"]
[WhiteTeamCountry "IND"]
[BlackTeamCountry "FRA"]
[TimeControl "40/5400+30:1800+30"]

1. e4 {[%emt 0:00:04]} c5 {[%emt 0:00:14]} 2. Nf3 {[%emt 0:00:08]} d6 {[%emt 0:00:14]} 3. d4 {[%emt 0:00:06]} Nf6 {[%emt 0:00:15]} 4. Nc3 {[%emt 0:00:04]} cxd4 {[%emt 0:00:10]} 5. Nxd4 {[%emt 0:00:05]} a6 {[%emt 0:00:08]} 6. Be2 {[%emt 0:00:06]} e5 {[%emt 0:00:56]} 7. Nb3 {[%emt 0:00:07]} Be7 {[%emt 0:00:20]} 8. Be3 {[%emt 0:00:08]} Be6 {[%emt 0:01:24]} 9. f4 {[%emt 0:00:11]} Qc7 {[%emt 0:06:58]} 10. f5 {[%emt 0:03:42]} Bd7 {[%emt 0:08:03]} 11. O-O {[%emt 0:02:20]} O-O {[%emt 0:04:56]} 12. a4 {[%emt 0:01:39]} Nc6 {[%emt 0:05:43]} 13. Nd5 {[%emt 0:07:12]} Nxd5 {[%emt 0:01:10]} 14. exd5 {[%emt 0:00:08]} Na5 {[%emt 0:03:28]} 15. Nd2 {[%emt 0:04:09]} b5 {[%emt 0:07:12]} 16. b3 {[%emt 0:42:32]} Rfc8 {[%emt 0:17:49]} 17. Bd3 {[%emt 0:03:44]} f6 {[%emt 0:01:42]} 18. Qh5 {[%emt 0:02:05]} Be8 {[%emt 0:02:01]} 19. Qh4 {[%emt 0:00:25]} Bf7 {[%emt 0:01:05]} 20. Rf3 {[%emt 0:07:20]} Kh8 {[%emt 0:17:10]} 21. Rh3 {[%emt 0:01:48]} Bg8 {[%emt 0:00:02]} 22. Nf3 {[%emt 0:02:34]} Nxb3 {[%emt 0:01:48]} 23. cxb3 {[%emt 0:11:31]} Qc3 {[%emt 0:00:12]} 24. Rd1 {[%emt 0:04:31]} Qxb3 {[%emt 0:00:15]} 25. Qe1 {[%emt 0:02:41]} Bxd5 {[%emt 0:01:55]} 26. Nh4 {[%emt 0:00:07]} Kg8 {[%emt 0:00:25]} 27. Rg3 {[%emt 0:02:02]} Qxa4 {[%emt 0:04:40]} 28. Be2 {[%emt 0:01:01]} Bf7 {[%emt 0:03:51]} 29. Rg4 {[%emt 0:01:53]} Qc2 {[%emt 0:01:39]} 30. Bh6 {[%emt 0:00:07]} Bf8 {[%emt 0:00:23]} 31. Qg3 {[%emt 0:00:42]} Qxe2 {[%emt 0:02:20]} 32. Re1 {[%emt 0:00:22]} Qa2 {[%emt 0:02:17]} 33. Bxg7 {[%emt 0:00:51]} Bxg7 {[%emt 0:00:14]} 34. Rxg7+ {[%emt 0:00:10]} Kh8 {[%emt 0:00:21]} 35. Rg4 {[%emt 0:00:39]} Qb3 {[%emt 0:01:07]} 36. Nf3 {[%emt 0:00:42]} Rg8 {[%emt 0:01:23]} 37. Rxg8+ {[%emt 0:00:19]} Rxg8 {[%emt 0:00:22]} 38. Qh4 {[%emt 0:00:06]} Kg7 {[%emt 0:00:53]} 39. Nd2 {[%emt 0:00:52]} Qc2 {[%emt 0:04:00]} 40. Ne4 {[%emt 0:00:02]} Kf8 {[%emt 0:00:39]} 41. g3 {[%emt 0:04:20]} d5 {[%emt 0:15:59]} 42. Nxf6 {[%emt 0:06:46]} Qc5+ {[%emt 0:06:10]} 43. Kg2 {[%emt 0:07:32]} Qc2+ {[%emt 0:00:06]} 44. Kg1 {[%emt 0:00:05]} Qc5+ {[%emt 0:00:03]} 45. Kh1 {[%emt 0:00:35]} Qf2 {[%emt 0:00:05]} 46. Nd7+ {[%emt 0:08:09]} Ke8 {[%emt 0:00:07]} 47. Nf6+ {[%emt 0:00:02]} Kf8 {[%emt 0:00:13]} 48. Nxh7+ {[%emt 0:01:07]} Kg7 {[%emt 0:01:16]} 49. Qf6+ {[%emt 0:00:17]} Kxh7 {[%emt 0:00:05]} 50. Qxf7+ {[%emt 0:00:02]} Rg7 {[%emt 0:01:15]} 51. Qh5+ {[%emt 0:00:05]} Kg8 {[%emt 0:00:03]} 52. Qe8+ {[%emt 0:00:02]} Kh7 {[%emt 0:00:03]} 53. Qh5+ {[%emt 0:00:02]} Kg8 {[%emt 0:00:03]} 54. Rc1 {[%emt 0:01:31]} Rc7 {[%emt 0:04:55]} 55. Qe8+ {[%emt 0:00:12]} Kg7 {[%emt 0:00:08]} 56. Rxc7+ {[%emt 0:00:03]} 1-0

[Event "45th FIDE Womens Olympiad 2024"]
[Site "Budapest"]
[Date "2024.09.14"]
[Round "4.3"]
[White "Ben Amor, Meriem"]
[Black "Elshalom Essayas Berhane"]
[Result "0-1"]
[ECO "B78"]
[WhiteElo "1733"]
[BlackElo "1659"]
[PlyCount "114"]
[EventDate "2024.09.05"]
[EventType "team-tourn"]
[EventCountry "HUN"]
[WhiteTeam "Tunisia"]
[BlackTeam "Eritrea"]
[WhiteTeamCountry "TUN"]
[BlackTeamCountry "ERI"]
[TimeControl "40/5400+30:1800+30"]

1. e4 c5 2. Nf3 Nc6 3. d4 cxd4 4. Nxd4 d6 5. Nc3 g6 6. Be3 Bg7 7. Qd2 Nf6 8. f3 Bd7 9. Bc4 O-O 10. Bb3 Rc8 11. O-O-O Ne5 12. Kb1 a6 13. h4 b5 14. Qe1 Nc4 15. Bg5 h6 16. Bc1 b4 17. Nd5 Nxd5 18. exd5 a5 19. Bxc4 Rxc4 20. Be3 h5 21. Qe2 Rc7 22. g4 hxg4 23. fxg4 Qc8 24. Rhg1 a4 25. h5 b3 26. cxb3 Bxd4 27. Bxd4 axb3 28. a3 e5 29. dxe6 Bxe6 30. hxg6 fxg6 31. Qh2 Rh7 32. Qxd6 Rd8 33. Qf4 Qc2+ 34. Ka1 Ra8 35. Qd6 Qc4 36. Rc1 Rd7 37. Qxd7 Qxc1+ 38. Rxc1 Bxd7 39. Rg1 Rc8 40. Kb1 Rc4 41. Bc3 Bxg4 42. Kc1 Kf7 43. Kd2 Bf5 44. Ke3 Rxc3+ 45. bxc3 b2 46. a4 b1=Q 47. Rxb1 Bxb1 48. a5 Bf5 49. a6 Bc8 50. a7 Bb7 51. c4 g5 52. c5 Ke6 53. Kf2 Kf5 54. Kg3 Bc6 55. Kf2 Kf4 56. Kf1 Kg3 57. Kg1 g4 {0-} 0-1

[Event "45th FIDE Womens Olympiad 2024"]
[Site "Budapest"]
[Date "2024.09.14"]
[Round "4.4"]
[White "Benmesbah, Natacha"]
[Black "Tania, Sachdev"]
[Result "0-1"]
[ECO "B43"]
[WhiteElo "2258"]
[BlackElo "2386"]
[Annotator "ChessBase"]
[PlyCount "100"]
[EventDate "2024.09.05"]
[EventType "team-tourn"]
[EventCountry "HUN"]
[SourceTitle "playchess.com"]
[Source "ChessBase"]
[SourceQuality "1"]
[WhiteTeam "France"]
[BlackTeam "India"]
[WhiteTeamCountry "FRA"]
[BlackTeamCountry "IND"]
[TimeControl "40/5400+30:1800+30"]

1. e4 {[%emt 0:00:02]} c5 {[%emt 0:00:04]} 2. Nf3 {[%emt 0:00:11]} e6 {[%emt 0:00:07]} 3. Nc3 {[%emt 0:05:48]} a6 {[%emt 0:01:21]} 4. d4 {[%emt 0:04:28]} cxd4 {[%emt 0:00:17]} 5. Nxd4 {[%emt 0:00:04]} Qc7 {[%emt 0:00:07]} 6. Be3 {[%emt 0:10:42]} Nf6 {[%emt 0:02:01]} 7. a3 {[%emt 0:12:36]} b5 {[%emt 0:09:26]} 8. Qd2 {[%emt 0:09:02]} Bb7 {[%emt 0:13:52]} 9. f3 {[%emt 0:05:03]} b4 {[%emt 0:09:43]} 10. axb4 {[%emt 0:06:42]} Bxb4 {[%emt 0:00:13]} 11. Ra4 {[%emt 0:02:53]} Be7 {[%emt 0:20:59]} 12. Bd3 {[%emt 0:08:11]} O-O {[%emt 0:03:07]} 13. O-O {[%emt 0:00:47]} d5 {[%emt 0:02:20]} 14. exd5 {[%emt 0:12:40]} Nxd5 {[%emt 0:00:10]} 15. Nxd5 {[%emt 0:00:10]} Bxd5 {[%emt 0:00:10]} 16. c4 {[%emt 0:03:03]} Bb7 {[%emt 0:00:23]} 17. Qa5 {[%emt 0:08:09]} Qxa5 {[%emt 0:03:14]} 18. Rxa5 {[%emt 0:00:04]} Nd7 {[%emt 0:04:27]} 19. Nc2 {[%emt 0:03:19]} Rfc8 {[%emt 0:01:51]} 20. Be2 {[%emt 0:01:11]} Bd8 {[%emt 0:06:36]} 21. Ra3 {[%emt 0:00:35]} Ne5 {[%emt 0:01:00]} 22. b3 {[%emt 0:01:10]} a5 {[%emt 0:06:57]} 23. Rfa1 {[%emt 0:02:31]} Nc6 {[%emt 0:00:09]} 24. Kf2 {[%emt 0:01:14]} Bf6 {[%emt 0:01:18]} 25. Rd1 {[%emt 0:00:37]} Rd8 {[%emt 0:00:27]} 26. Rxd8+ {[%emt 0:00:53]} Rxd8 {[%emt 0:00:15]} 27. Ra2 {[%emt 0:00:49]} Bc3 {[%emt 0:00:21]} 28. f4 {[%emt 0:00:55]} Rb8 {[%emt 0:04:45]} 29. Bf3 {[%emt 0:00:36]} Ba8 {[%emt 0:00:13]} 30. Bxc6 {[%emt 0:00:26]} Bxc6 {[%emt 0:00:08]} 31. Nd4 {[%emt 0:00:07]} Be4 {[%emt 0:06:03]} 32. Nb5 {[%emt 0:00:24]} Bb4 {[%emt 0:00:12]} 33. Bd4 {[%emt 0:00:44]} f6 {[%emt 0:02:25]} 34. Ke3 {[%emt 0:00:41]} Bc6 {[%emt 0:00:16]} 35. Na7 {[%emt 0:00:21]} Bd7 {[%emt 0:01:21]} 36. c5 {[%emt 0:00:12]} e5 {[%emt 0:00:09]} 37. fxe5 {[%emt 0:01:05]} fxe5 {[%emt 0:00:01]} 38. Bxe5 {[%emt 0:00:05]} Bxc5+ {[%emt 0:00:17]} 39. Kd2 {[%emt 0:00:51]} Re8 {[%emt 0:01:24]} 40. Bc3 {[%emt 0:00:38]} Bxa7 {[%emt 0:00:28]} 41. Rxa5 {[%emt 0:30:07]} Be3+ {[%emt 0:31:19]} 42. Kd3 {[%emt 0:00:00]} Bb6 {[%emt 0:00:00]} 43. Rd5 {[%emt 0:00:00]} Bc6 {[%emt 0:00:00]} 44. Rd6 {[%emt 0:00:00]} Be4+ {[%emt 0:00:00]} 45. Kd2 {[%emt 0:00:00]} Bc7 {[%emt 0:00:00]} 46. Rd7 {[%emt 0:00:00]} Bf4+ {[%emt 0:00:00]} 47. Kd1 {[%emt 0:00:00]} Be5 {[%emt 0:00:00]} 48. Bxe5 {[%emt 0:00:00]} Rxe5 {[%emt 0:00:00]} 49. g3 {[%emt 0:00:00]} Rd5+ {[%emt 0:00:00]} 50. Rxd5 {[%emt 0:00:00]} Bxd5 {[%emt 0:00:00]} 0-1

[Event "45th FIDE Womens Olympiad 2024"]
[Site "Budapest"]
[Date "2024.09.14"]
[Round "4.5"]
[White "De Blecourt, Sandra"]
[Black "Gaal, Zsoka"]
[Result "0-1"]
[ECO "E13"]
[WhiteElo "2065"]
[BlackElo "2385"]
[Annotator "ChessBase"]
[PlyCount "74"]
[EventDate "2024.09.05"]
[EventType "team-tourn"]
[EventCountry "HUN"]
[SourceTitle "playchess.com"]
[Source "ChessBase"]
[SourceQuality "1"]
[WhiteTeam "Denmark"]
[BlackTeam "Hungary"]
[WhiteTeamCountry "DEN"]
[BlackTeamCountry "HUN"]
[TimeControl "40/5400+30:1800+30"]

1. d4 {[%emt 0:00:02]} Nf6 {[%emt 0:00:10]} 2. c4 {[%emt 0:00:05]} e6 {[%emt 0:00:07]} 3. Nc3 {[%emt 0:00:06]} Bb4 {[%emt 0:00:07]} 4. Nf3 {[%emt 0:00:07]} Bxc3+ {[%emt 0:05:24]} 5. bxc3 {[%emt 0:00:10]} d6 {[%emt 0:00:10]} 6. Bg5 {[%emt 0:00:12]} h6 {[%emt 0:01:31]} 7. Bh4 {[%emt 0:00:17]} Nbd7 {[%emt 0:02:12]} 8. Nd2 {[%emt 0:01:01]} b6 {[%emt 0:03:39]} 9. e3 {[%emt 0:05:47]} Bb7 {[%emt 0:00:24]} 10. f3 {[%emt 0:00:10]} Qe7 {[%emt 0:05:27]} 11. Be2 {[%emt 0:04:48]} e5 {[%emt 0:02:34]} 12. O-O {[%emt 0:07:59]} O-O {[%emt 0:12:16]} 13. Qc2 {[%emt 0:06:39]} Rfe8 {[%emt 0:12:39]} 14. Rae1 {[%emt 0:09:19]} Nf8 {[%emt 0:01:43]} 15. Bd3 {[%emt 0:12:04]} g5 {[%emt 0:04:24]} 16. Bg3 {[%emt 0:05:18]} Kg7 {[%emt 0:04:32]} 17. c5 {[%emt 0:12:04]} Nh5 {[%emt 0:07:51]} 18. cxd6 {[%emt 0:05:45]} cxd6 {[%emt 0:00:07]} 19. f4 {[%emt 0:02:34]} Nxg3 {[%emt 0:05:12]} 20. hxg3 {[%emt 0:00:06]} e4 {[%emt 0:04:18]} 21. Bb5 {[%emt 0:00:49]} Rec8 {[%emt 0:00:58]} 22. fxg5 {[%emt 0:02:34]} hxg5 {[%emt 0:00:49]} 23. Rf5 {[%emt 0:01:37]} d5 {[%emt 0:04:36]} 24. Ref1 {[%emt 0:02:36]} Nh7 {[%emt 0:00:37]} 25. Qb3 {[%emt 0:09:57]} Rc7 {[%emt 0:05:45]} 26. Be2 {[%emt 0:00:31]} Rd8 {[%emt 0:01:24]} 27. c4 {[%emt 0:01:27]} f6 {[%emt 0:03:57]} 28. cxd5 {[%emt 0:00:22]} Bc8 {[%emt 0:02:38]} 29. Bg4 {[%emt 0:01:59]} Nf8 {[%emt 0:01:45]} 30. Qd1 {[%emt 0:04:48]} Bxf5 {[%emt 0:00:49]} 31. Bxf5 {[%emt 0:00:05]} Rxd5 {[%emt 0:00:18]} 32. Bxe4 {[%emt 0:00:17]} Ra5 {[%emt 0:00:56]} 33. a4 {[%emt 0:00:32]} f5 {[%emt 0:00:51]} 34. Bxf5 {[%emt 0:01:42]} Qxe3+ {[%emt 0:00:07]} 35. Kh2 {[%emt 0:00:04]} Rxf5 {[%emt 0:00:41]} 36. Rxf5 {[%emt 0:00:07]} Kg6 {[%emt 0:00:19]} 37. Rxf8 {[%emt 0:03:00]} Rh7+ {[%emt 0:00:06]} 0-1

[Event "45th FIDE Womens Olympiad 2024"]
[Site "Budapest"]
[Date "2024.09.14"]
[Round "4.5"]
[White "Andhin, Chethanah"]
[Black "Wilson, Hannah"]
[Result "0-1"]
[ECO "D02"]
[WhiteElo "1607"]
[BlackElo "1888"]
[PlyCount "150"]
[EventDate "2024.09.05"]
[EventType "team-tourn"]
[EventCountry "HUN"]
[WhiteTeam "Mauritius"]
[BlackTeam "Barbados"]
[WhiteTeamCountry "MRI"]
[BlackTeamCountry "BAR"]
[TimeControl "40/5400+30:1800+30"]

1. d4 d5 2. Bf4 Nf6 3. Nf3 c5 4. c3 Nc6 5. e3 Qb6 6. Qc2 g6 7. Nbd2 cxd4 8. exd4 Bg7 9. Bd3 O-O 10. h3 Re8 11. O-O Bd7 12. Rfe1 Rac8 13. Qb3 Na5 14. Qa3 Bf8 15. b4 Nc4 16. Qb3 Bb5 17. Bc2 Nh5 18. Bh2 Bh6 19. Nf1 Nf4 20. a4 Bd7 21. Ne5 Be6 22. Nxc4 dxc4 23. Qb1 Qc6 24. Be4 Bd5 25. Bxd5 Qxd5 26. Qe4 Qxe4 27. Rxe4 Nd5 28. Ra3 Bc1 29. Ra1 Bb2 30. Rae1 Bxc3 31. Rb1 Nf6 32. Rf4 g5 33. Rf3 Bxd4 34. Rc1 c3 35. Rd3 Red8 36. Ne3 e5 37. Nf5 Kf8 38. Nxd4 exd4 39. Be5 Nd5 40. Rxd4 f6 41. Bg3 c2 42. Rd2 Nxb4 43. Bd6+ Rxd6 44. Rxd6 Na2 45. Rxc2 Rxc2 46. Rxf6+ Kg7 47. Rd6 Rc7 48. Kh2 Nc3 49. Rd4 b5 50. axb5 Kf6 51. b6 axb6 52. Rd6+ Kg7 53. Rxb6 Nd1 54. Kg1 Rc2 55. Rb7+ Kg6 56. Rb6+ Kf5 57. Rb5+ Kf4 58. Rb4+ Kf5 59. Rb5+ Kf6 60. Rb6+ Ke7 61. Rb7+ Ke6 62. Rb6+ Kd5 63. Rb7 Nxf2 64. Rxh7 Ne4 65. Rh8 Ke5 66. Re8+ Kf4 67. Rf8+ Kg3 68. Rf3+ Kh4 69. Kh2 Rf2 70. Re3 Nd2 71. Kg1 Rf1+ 72. Kh2 Rd1 73. Re8 Nf1+ 74. Kg1 Ng3+ 75. Kf2 Rf1+ {0-} 0-1

[Event "45th FIDE Womens Olympiad 2024"]
[Site "Budapest"]
[Date "2024.09.14"]
[Round "4.6"]
[White "Hoang, Thanh Trang"]
[Black "Kakulidis, Ellen"]
[Result "1-0"]
[ECO "D23"]
[WhiteElo "2351"]
[BlackElo "2048"]
[Annotator "ChessBase"]
[PlyCount "73"]
[EventDate "2024.09.05"]
[EventType "team-tourn"]
[EventCountry "HUN"]
[SourceTitle "playchess.com"]
[Source "ChessBase"]
[SourceQuality "1"]
[WhiteTeam "Hungary"]
[BlackTeam "Denmark"]
[WhiteTeamCountry "HUN"]
[BlackTeamCountry "DEN"]
[TimeControl "40/5400+30:1800+30"]

1. d4 {[%emt 0:00:12]} d5 {[%emt 0:00:06]} 2. c4 {[%emt 0:00:27]} c6 {[%emt 0:00:06]} 3. Nf3 {[%emt 0:00:20]} Nf6 {[%emt 0:00:08]} 4. Qc2 {[%emt 0:00:23]} dxc4 {[%emt 0:00:10]} 5. Qxc4 {[%emt 0:00:17]} Bf5 {[%emt 0:00:26]} 6. g3 {[%emt 0:00:46]} e6 {[%emt 0:00:07]} 7. Bg2 {[%emt 0:00:22]} Be7 {[%emt 0:01:00]} 8. O-O {[%emt 0:01:17]} O-O {[%emt 0:00:50]} 9. e3 {[%emt 0:02:12]} Nbd7 {[%emt 0:01:28]} 10. Rd1 {[%emt 0:00:54]} a5 {[%emt 0:02:27]} 11. Nc3 {[%emt 0:06:48]} a4 {[%emt 0:01:42]} 12. Ne1 {[%emt 0:10:38]} a3 {[%emt 0:13:28]} 13. bxa3 {[%emt 0:05:28]} Bxa3 {[%emt 0:04:11]} 14. e4 {[%emt 0:01:07]} Bxc1 {[%emt 0:10:44]} 15. Rdxc1 {[%emt 0:05:32]} Bg6 {[%emt 0:02:09]} 16. Rab1 {[%emt 0:01:02]} Ra7 {[%emt 0:06:59]} 17. Rb3 {[%emt 0:08:11]} Qa8 {[%emt 0:14:36]} 18. a4 {[%emt 0:03:51]} h6 {[%emt 0:13:39]} 19. Nd3 {[%emt 0:09:10]} Re8 {[%emt 0:04:38]} 20. f4 {[%emt 0:04:53]} Ra5 {[%emt 0:08:27]} 21. Nf2 {[%emt 0:03:58]} Qa7 {[%emt 0:07:10]} 22. Rcb1 {[%emt 0:03:24]} Rb8 {[%emt 0:01:10]} 23. g4 {[%emt 0:03:28]} c5 {[%emt 0:01:46]} 24. f5 {[%emt 0:01:05]} exf5 {[%emt 0:01:58]} 25. exf5 {[%emt 0:02:23]} cxd4 {[%emt 0:01:44]} 26. fxg6 {[%emt 0:02:22]} dxc3 {[%emt 0:00:17]} 27. Rxb7 {[%emt 0:02:21]} Rxb7 {[%emt 0:00:57]} 28. Qc8+ {[%emt 0:04:27]} Nf8 {[%emt 0:00:01]} 29. Rxb7 {[%emt 0:00:47]} Qc5 {[%emt 0:00:02]} 30. Rc7 {[%emt 0:00:53]} Qb4 {[%emt 0:01:15]} 31. gxf7+ {[%emt 0:00:52]} Kh7 {[%emt 0:00:03]} 32. Bf1 {[%emt 0:03:20]} Rxa4 {[%emt 0:02:02]} 33. Rc4 {[%emt 0:00:31]} Qb3 {[%emt 0:00:17]} 34. Rxa4 {[%emt 0:00:23]} Qxa4 {[%emt 0:00:02]} 35. Qxf8 {[%emt 0:00:23]} Qc6 {[%emt 0:00:17]} 36. Bd3+ {[%emt 0:00:37]} g6 {[%emt 0:00:08]} 37. Qe7 {[%emt 0:00:16]} 1-0